bitfinex/quotes_ETHUSD_20220115
["timestamp","ask_amount","ask_price","bid_price","bid_amount"]
[1642229637561,0.02833,3319.1,3319.0,0.95112646]
[1642229637761,1.02833,3319.1,3319.0,0.95112646]
[1642229638061,1.50897842,3319.2,3319.0,0.95112646]
[1642229638261,1.0,3319.1,3319.0,0.95112646]
[1642229638663,1.50897842,3319.2,3319.0,0.95112646]
[1642229639261,0.55785196,3319.2,3318.9,1.37557143]
[1642229639722,0.55785196,3319.2,3319.0,2.54391356]
[1642229640214,0.55785196,3319.2,3318.9,1.37557143]
[1642229640714,0.55785196,3319.2,3319.0,2.53361364]
[1642229641314,0.027278,3319.6,3319.0,2.53361364]
[1642229641515,0.027278,3319.6,3318.9,1.37557143]
[1642229641715,0.00682108,3319.5,3319.0,2.54912548]
[1642229641914,0.00682108,3319.5,3318.9,1.37557143]
[1642229642115,0.00625266,3319.4,3319.0,2.52226343]
[1642229642318,0.00625266,3319.4,3319.0,2.53744322]
[1642229642514,0.00568424,3319.3,3318.9,1.37557143]
[1642229642715,0.00568424,3319.3,3319.0,2.54725442]
[1642229642915,0.00511581,3319.2,3318.9,1.37557143]
[1642229643359,0.00454739,3319.1,3318.9,1.37557143]
[1642229643760,0.00397897,3319.0,3318.9,1.37557143]
[1642229644160,0.00397897,3319.0,3318.9,4.02010798]
[1642229645961,0.00397897,3319.0,3318.9,6.59674088]
[1642229651566,0.00397897,3319.0,3318.9,6.58408813]
[1642229652466,0.00397897,3319.0,3318.9,3.95220433]
[1642229652670,0.00397897,3319.0,3318.9,6.58596146]
[1642229654067,0.00397897,3319.0,3318.9,24.25596146]
[1642229654267,1.50879628,3319.6,3319.0,5.8]
[1642229654467,0.01219524,3320.4,3319.1,3.09122697]
[1642229654716,0.01219524,3320.4,3319.2,1.176]
[1642229654916,0.01219524,3320.4,3319.3,2.90304414]
[1642229655415,1.50856867,3320.1,3319.3,2.90304414]
[1642229655812,0.00568423,3320.0,3319.9,1.2790531]
[1642229656012,0.00568423,3320.0,3319.9,2.60318753]
[1642229656412,0.00568423,3320.0,3319.9,1.32413443]
[1642229657513,0.00568423,3320.0,3319.9,2.87905633]
[1642229658213,0.00568423,3320.0,3319.9,1.32413443]
[1642229663112,1.50847764,3320.3,3320.0,5.8]
[1642229663318,1.50847764,3320.3,3320.1,2.8574367]
[1642229663513,0.00113685,3320.2,3320.1,2.8574367]
[1642229663712,0.00113685,3320.2,3319.9,1.36959743]
[1642229664813,0.00113685,3320.2,3319.9,1.32413443]
[1642229666959,0.00113685,3320.2,3320.0,1.139]
[1642229667758,0.00113685,3320.2,3320.1,2.52339296]
[1642229668159,0.00113685,3320.2,3320.0,1.139]
[1642229668361,0.00113685,3320.2,3320.1,2.51337883]
[1642229668563,0.00113685,3320.2,3320.1,2.54902025]
[1642229669361,0.00113685,3320.2,3320.0,1.139]
[1642229669620,0.00113685,3320.2,3320.1,5.106296]
[1642229670013,1.45938698,3320.8,3320.5,1.1736985]
[1642229670213,1.45938698,3320.8,3320.3,2.49785151]
[1642229670415,0.00284212,3320.7,3320.1,5.14659492]
[1642229670613,0.00284212,3320.7,3320.2,2.55055512]
[1642229670815,0.00227369,3320.6,3320.2,2.55055512]
[1642229671220,0.00170527,3320.5,3320.2,2.55055512]
[1642229671416,0.00170527,3320.5,3320.3,1.14808178]
[1642229671615,1.45938698,3320.8,3320.4,2.6675933]
[1642229671816,1.45938698,3320.8,3320.3,1.14808178]
[1642229672117,0.00284212,3320.7,3320.3,1.14808178]
[1642229672415,1.45938698,3320.8,3320.4,2.51545847]
[1642229672416,0.00227369,3320.6,3320.4,2.51545847]
[1642229672618,0.00227369,3320.6,3320.4,2.57900116]
[1642229672815,1.45938698,3320.8,3320.4,2.55637472]
[1642229672816,0.00170527,3320.5,3320.4,2.55637472]
[1642229673016,0.00170527,3320.5,3320.4,2.50456048]
[1642229673214,0.00170527,3320.5,3320.4,2.62120393]
[1642229673860,0.00170527,3320.5,3320.3,1.14808178]
[1642229674057,0.00170527,3320.5,3320.4,2.55728578]
[1642229674257,0.00113685,3320.4,3320.3,1.14808178]
[1642229674459,1.31598863,3321.1,3320.3,3.8352658]
[1642229674859,0.00284212,3321.0,3320.3,3.83640265]
[1642229675158,0.00227369,3320.9,3320.3,1.14921863]
[1642229675557,0.00170527,3320.8,3320.3,1.14921863]
[1642229675957,0.00113685,3320.7,3320.3,1.14921863]
[1642229676659,0.00113685,3320.7,3320.4,2.52844442]
[1642229676860,0.00113685,3320.7,3320.3,1.14921863]
[1642229680613,0.00113685,3320.7,3320.3,0.00113685]
[1642229681060,0.00113685,3320.7,3320.2,0.00170527]
[1642229682259,1.21316172,3320.6,3320.2,0.00170527]
[1642229684367,0.00113685,3320.7,3320.2,0.00170527]
[1642229686917,1.22905348,3320.7,3320.2,0.00170527]
[1642229687512,0.00113685,3320.7,3320.2,0.00170527]
[1642229689668,1.50943248,3320.7,3320.2,0.00170527]
[1642229699071,4.36757576,3320.7,3320.2,0.00170527]
[1642229699471,1.0,3320.6,3320.2,0.00170527]
[1642229700114,2.50943248,3320.7,3320.2,0.00170527]
[1642229700715,1.50943248,3320.7,3320.2,0.00170527]
[1642229700913,1.0,3320.6,3320.2,0.00170527]
[1642229701115,1.50943248,3320.7,3320.2,0.00170527]
[1642229703461,1.50943248,3320.7,3320.3,1.29003219]
[1642229703862,1.50943248,3320.7,3320.2,0.00170527]
[1642229705263,1.50943248,3320.7,3320.3,0.033616]
[1642229706263,1.50829563,3320.7,3320.3,0.033616]
[1642229707128,1.50829563,3320.7,3320.2,1.01596285]
[1642229707514,0.00227369,3320.6,3320.2,1.01596285]
[1642229707914,0.00170527,3320.5,3320.2,1.01596285]
[1642229708315,0.00113685,3320.4,3320.2,1.01596285]
[1642229708915,0.00113685,3320.4,3320.3,2.55152915]
[1642229709116,0.00113685,3320.4,3320.3,2.63564934]
[1642229709316,0.00113685,3320.4,3320.2,1.01596285]
[1642229718015,0.00113685,3320.4,3320.3,2.575633]
[1642229721264,0.00113685,3320.4,3320.3,5.24088486]
[1642229721765,0.00113685,3320.4,3320.3,2.575633]
[1642229723919,1.3542892,3321.6,3320.4,5.8]
[1642229724120,1.3542892,3321.6,3320.5,5.05812786]
[1642229724321,0.00341054,3321.0,3320.6,0.3]
[1642229724518,6.21,3322.6,3321.0,5.8]
[1642229724720,0.00702194,3322.0,3321.1,8.13273819]
[1642229724918,1.50802268,3321.3,3321.1,10.18526819]
[1642229725218,0.01003733,3322.4,3321.4,17.67]
[1642229725418,1.231,3323.0,3321.5,6.14062786]
[1642229725621,0.00795793,3322.9,3322.2,0.229]
[1642229725881,0.00795793,3322.9,3321.5,6.14062786]
[1642229725882,1.50770437,3322.0,3321.6,1.1495]
[1642229726284,0.0022737,3321.9,3321.6,1.1495]
[1642229726682,0.00170527,3321.8,3321.7,1.3548515]
[1642229729386,0.00170527,3321.8,3321.7,2.57488436]
[1642229730819,1.0,3322.4,3321.8,4.2]
[1642229731021,2.5135563,3322.5,3321.9,2.5327915]
[1642229731221,2.5135563,3322.5,3321.6,2.40342727]
[1642229731222,0.00284212,3322.3,3321.6,2.40342727]
[1642229731419,0.00284212,3322.3,3321.7,2.56177559]
[1642229731620,0.0022737,3322.2,3321.7,2.56177559]
[1642229732020,0.00170527,3322.1,3321.7,2.56177559]
[1642229732222,0.00170527,3322.1,3321.6,2.40342727]
[1642229732422,0.00113685,3322.0,3321.6,2.40342727]
[1642229732620,0.00113685,3322.0,3321.8,2.57486572]
[1642229733469,0.00113685,3322.0,3321.7,2.57486572]
[1642229734268,0.00113685,3322.0,3321.6,2.40342727]
[1642229734468,0.00113685,3322.0,3321.6,1.1495]
[1642229735268,1.21659932,3321.7,3321.5,3.2958]
[1642229735470,0.00113685,3322.0,3321.4,6.35624438]
[1642229735670,0.00113685,3322.0,3321.6,0.00113684]
[1642229735871,0.00113685,3322.0,3321.5,0.00170527]
[1642229736670,0.00113685,3322.0,3321.5,1.20960527]
[1642229736873,1.43888085,3322.0,3321.6,2.66677627]
[1642229737122,1.43888085,3322.0,3321.6,0.00113684]
[1642229737318,2.03888085,3322.0,3321.6,0.00113684]
[1642229737718,1.43888085,3322.0,3321.6,0.00113684]
[1642229737919,2.03888085,3322.0,3321.6,0.00113684]
[1642229738920,1.29320911,3321.7,3321.6,0.00113684]
[1642229739520,1.29320911,3321.7,3321.5,0.00170527]
[1642229739720,1.29320911,3321.7,3321.1,0.00397896]
[1642229739922,1.22747752,3321.2,3321.1,0.00397896]
[1642229740120,1.29320911,3321.7,3321.1,0.00397896]
[1642229740521,1.29320911,3321.7,3321.0,0.00454738]
[1642229740866,1.29320911,3321.7,3321.1,2.57523281]
[1642229741269,1.40896997,3321.6,3321.2,0.00341054]
[1642229741470,2.845852,3321.5,3321.2,0.00341054]
[1642229741870,1.0,3321.4,3321.2,0.00341054]
[1642229742070,0.3,3321.3,3321.2,0.00341054]
[1642229742470,0.31149441,3321.4,3321.2,0.00341054]
[1642229743270,0.31149441,3321.4,3321.0,0.00454738]
[1642229743471,2.50793172,3321.5,3321.0,0.00454738]
[1642229743672,2.50793172,3321.5,3320.7,0.00625265]
[1642229743871,2.50793172,3321.5,3321.0,2.57523281]
[1642229743872,2.80793172,3321.5,3321.0,2.57523281]
[1642229744072,2.50793172,3321.5,3321.0,2.57523281]
[1642229744376,2.50793172,3321.5,3321.2,10.0]
[1642229744834,2.50793172,3321.5,3321.3,0.00284211]
[1642229745233,1.3,3321.5,3321.3,0.00284211]
[1642229745434,0.75295,3321.4,3321.3,0.00284211]
[1642229745836,3.60535494,3321.4,3321.3,0.00284211]
[1642229746035,4.61474579,3321.4,3321.3,0.00284211]
[1642229746235,1.75295,3321.4,3321.3,0.00284211]
[1642229746436,4.59353529,3321.4,3321.3,0.00284211]
[1642229746635,1.75295,3321.4,3321.3,0.00284211]
[1642229747835,4.5981168,3321.4,3321.3,0.00284211]
[1642229748037,1.75295,3321.4,3321.3,0.00284211]
[1642229749169,4.57662652,3321.4,3321.3,0.00284211]
[1642229749369,1.75295,3321.4,3321.3,0.00284211]
[1642229750370,1.0,3321.4,3321.3,0.00284211]
[1642229750569,3.10793172,3321.5,3321.3,0.00284211]
[1642229750771,2.80793172,3321.5,3321.3,0.00284211]
[1642229751469,5.80793172,3321.5,3321.3,0.00284211]
[1642229752319,6.1809038,3321.5,3321.3,0.00284211]
[1642229752519,9.01059667,3321.5,3321.3,0.00284211]
[1642229752718,9.31059667,3321.5,3321.3,0.00284211]
[1642229752919,0.75294,3321.4,3321.3,0.00284211]
[1642229753118,1.75294,3321.4,3321.3,0.00284211]
[1642229757566,1.789994,3321.4,3321.3,0.00284211]
[1642229760021,1.0,3321.4,3321.3,0.00284211]
[1642229760217,4.80793172,3321.5,3321.3,0.00284211]
[1642229760218,4.50793172,3321.5,3321.3,0.00284211]
[1642229761018,4.50793172,3321.5,3321.3,2.57800652]
[1642229761419,4.80793172,3321.5,3321.4,0.00227369]
[1642229762022,5.10793172,3321.5,3321.4,0.00227369]
[1642229762225,5.10793172,3321.5,3321.3,0.00284211]
[1642229764468,4.80793172,3321.5,3321.3,0.00284211]
[1642229764670,4.50793172,3321.5,3321.3,2.59215386]
[1642229765070,4.50793172,3321.5,3321.4,0.00227369]
[1642229765271,3.0,3321.5,3321.4,0.00227369]
[1642229765870,3.0,3321.5,3321.4,2.56712769]
[1642229766474,3.0,3321.5,3321.4,5.14222214]
[1642229766870,4.51196679,3321.5,3321.4,5.14222214]
[1642229767521,4.51196679,3321.5,3321.4,2.57736814]
[1642229769117,4.51196679,3321.5,3321.4,0.00227369]
[1642229769517,4.51196679,3321.5,3321.3,0.00284211]
[1642229770123,4.51196679,3321.5,3321.3,2.53823369]
[1642229770319,4.51196679,3321.5,3321.3,2.5779532]
[1642229770519,4.51196679,3321.5,3321.4,2.55977479]
[1642229770720,3.0,3321.5,3321.4,2.55977479]
[1642229770967,3.0,3321.5,3321.4,1.14431606]
[1642229771768,3.0,3321.5,3321.4,3.71942715]
[1642229772772,3.0,3321.5,3321.4,2.57738478]
[1642229773669,3.0,3321.5,3321.4,0.00227369]
[1642229773870,3.0,3321.5,3321.4,2.58883127]
[1642229774270,3.0,3321.5,3321.4,5.42323678]
[1642229774473,3.0,3321.5,3321.4,6.23353678]
[1642229774724,1.50747709,3322.5,3321.5,5.8]
[1642229775026,0.00341055,3322.4,3321.6,2.84698884]
[1642229775220,1.43885974,3322.4,3322.1,1.51630169]
[1642229775423,0.00284212,3322.3,3322.1,1.51630169]
[1642229775817,0.0022737,3322.2,3322.1,1.51630169]
[1642229776018,0.0022737,3322.2,3321.6,2.84698884]
[1642229776520,0.00170527,3322.1,3321.6,2.84698884]
[1642229776819,0.00113685,3322.0,3321.6,2.84698884]
[1642229777018,0.00113685,3322.0,3321.7,1.13467024]
[1642229777219,1.27124528,3322.0,3321.8,2.72621453]
[1642229777420,1.27124528,3322.0,3321.6,2.99175713]
[1642229777821,1.27124528,3322.0,3321.7,2.57459546]
[1642229778023,1.27124528,3322.0,3321.8,2.83675452]
[1642229778221,1.27124528,3322.0,3321.8,2.55583153]
[1642229778468,1.27124528,3322.0,3321.8,2.7439405]
[1642229778668,1.27124528,3322.0,3321.7,2.57459546]
[1642229778869,1.27124528,3322.0,3321.8,2.55486601]
[1642229779072,1.27124528,3322.0,3321.7,2.57459546]
[1642229779268,1.27124528,3322.0,3321.8,2.54936882]
[1642229779472,1.27124528,3322.0,3321.8,2.55833596]
[1642229779669,1.27124528,3322.0,3321.7,2.57459546]
[1642229780069,1.27124528,3322.0,3321.6,2.73452271]
[1642229780070,1.27124528,3322.0,3321.6,2.72143233]
[1642229780770,0.00113685,3322.0,3321.6,2.72143233]
[1642229780969,0.00113685,3322.0,3321.7,2.57466043]
[1642229781172,0.00113685,3322.0,3321.8,2.63824752]
[1642229781369,0.00113685,3322.0,3321.7,2.57466043]
[1642229781569,0.00113685,3322.0,3321.8,2.51558297]
[1642229781769,1.52451057,3321.9,3321.8,2.51558297]
[1642229781969,1.52451057,3321.9,3321.8,2.52394616]
[1642229782419,1.52451057,3321.9,3321.8,2.66317021]
[1642229782622,1.52451057,3321.9,3321.6,2.82020315]
[1642229783919,0.00113685,3322.0,3321.6,2.82020315]
[1642229785969,0.00113685,3322.0,3321.6,0.00113684]
[1642229787271,1.50059251,3322.5,3321.7,2.95]
[1642229787570,1.50059251,3322.5,3321.8,0.75367415]
[1642229787571,0.04008727,3322.3,3321.8,0.75367415]
[1642229787871,0.00113685,3322.2,3321.8,0.75367415]
[1642229788274,1.13461186,3322.1,3321.8,0.75367415]
[1642229788472,1.13461186,3322.1,3321.8,0.00113685]
[1642229788970,1.13461186,3322.1,3321.6,0.00227369]
[1642229789816,0.036297,3322.0,3321.6,0.00227369]
[1642229790821,1.13461186,3322.1,3321.6,0.00227369]
[1642229791218,1.16739386,3322.1,3321.6,0.00227369]
[1642229791418,1.13461186,3322.1,3321.6,0.00227369]
[1642229791618,0.032733,3322.3,3321.7,1.48978299]
[1642229791821,0.0022737,3322.4,3321.7,1.48978299]
[1642229792018,0.00113685,3322.2,3321.8,0.00113685]
[1642229792218,0.00113685,3322.2,3321.8,0.67553685]
[1642229792418,0.0022737,3322.4,3321.8,0.67553685]
[1642229792920,1.41853067,3321.9,3321.8,0.67553685]
[1642229793966,1.41853067,3321.9,3321.8,0.00113685]
[1642229794465,1.41853067,3321.9,3321.6,0.00227369]
[1642229796268,1.45231767,3321.9,3321.6,0.00227369]
[1642229797621,1.41853067,3321.9,3321.6,0.00227369]
[1642229798718,0.0022737,3322.4,3321.6,1.50738179]
[1642229799118,0.0022737,3322.4,3321.7,0.00170527]
[1642229799921,0.0372657,3322.4,3321.7,0.00170527]
[1642229800120,0.0022737,3322.4,3321.7,0.00170527]
[1642229800320,0.0022737,3322.4,3322.0,1.42440427]
[1642229800520,1.52268841,3322.1,3322.0,1.42440427]
[1642229800722,0.0022737,3322.4,3322.0,1.42440427]
[1642229801566,0.0022737,3322.4,3322.1,2.57444782]
[1642229802165,1.54097206,3322.3,3322.1,2.57444782]
[1642229802565,0.00113685,3322.2,3322.1,2.57444782]
[1642229803267,0.00113685,3322.2,3322.0,2.57444782]
[1642229803671,1.38968243,3322.2,3322.0,2.57444782]
[1642229803869,1.42371143,3322.2,3321.7,0.00170527]
[1642229804170,0.045463,3321.8,3321.6,0.00227369]
[1642229804816,1.0985595,3321.7,3321.6,0.00227369]
[1642229805418,1.0985595,3321.7,3321.4,1.43206127]
[1642229805819,1.0985595,3321.7,3321.6,2.5747798]
[1642229806222,1.0985595,3321.7,3321.6,2.57705349]
[1642229807018,1.0985595,3321.7,3321.6,0.00227369]
[1642229807620,1.38968243,3322.2,3321.6,0.00227369]
[1642229808119,0.00113685,3322.2,3321.6,0.00227369]
[1642229808568,0.00113685,3322.2,3321.6,2.57705349]
[1642229808871,0.00113685,3322.2,3321.7,0.00170527]
[1642229809869,1.11964579,3322.2,3321.7,0.00170527]
[1642229810070,1.30687103,3321.9,3321.7,0.00170527]
[1642229810669,0.038343,3321.8,3321.7,0.00170527]
[1642229811269,1.30687103,3321.9,3321.7,0.00170527]
[1642229811870,1.30687103,3321.9,3321.6,0.00227369]
[1642229812316,0.03386985,3322.2,3321.6,0.00227369]
[1642229812719,0.00113685,3322.2,3321.6,0.00227369]
[1642229812916,0.039499,3322.1,3321.6,0.00227369]
[1642229813316,0.036438,3322.1,3321.6,0.00227369]
[1642229813716,0.045197,3321.9,3321.6,2.57180723]
[1642229813916,0.032733,3322.1,3321.6,2.57180723]
[1642229814122,1.56142728,3321.8,3321.7,0.00170527]
[1642229814616,1.56142728,3321.8,3321.7,2.57648507]
[1642229815018,1.56142728,3321.8,3321.7,5.08078405]
[1642229815418,1.56142728,3321.8,3321.7,2.57648507]
[1642229815617,1.56142728,3321.8,3321.7,5.10321562]
[1642229815867,1.56142728,3321.8,3321.7,5.10305178]
[1642229816069,1.56142728,3321.8,3321.7,5.17388012]
[1642229816268,1.56142728,3321.8,3321.7,2.57648507]
[1642229817869,1.56142728,3321.8,3321.7,0.00170527]
[1642229819070,0.032733,3322.1,3321.7,2.50027635]
[1642229819471,0.032733,3322.1,3321.8,0.00113685]
[1642229819723,0.00113685,3322.2,3321.8,0.00113685]
[1642229819921,0.00113685,3322.2,3321.7,2.50419622]
[1642229819922,0.00113685,3322.2,3321.7,2.50590149]
[1642229820118,0.00113685,3322.2,3321.8,0.00113685]
[1642229820318,0.03655685,3322.2,3321.8,0.00113685]
[1642229820519,1.26522077,3322.2,3321.8,2.57591665]
[1642229820720,1.26522077,3322.2,3321.9,1.12374951]
[1642229821620,1.26522077,3322.2,3321.8,2.57591665]
[1642229821822,1.26522077,3322.2,3321.8,0.00113685]
[1642229822118,0.045463,3321.9,3321.7,0.00170527]
[1642229822519,0.032733,3322.0,3321.5,0.00284212]
[1642229822820,0.032733,3322.0,3321.7,2.57468756]
[1642229823218,0.032733,3322.0,3321.8,0.00113685]
[1642229823767,1.54396818,3322.0,3321.8,0.00113685]
[1642229824167,1.54396818,3322.0,3321.6,0.00227369]
[1642229824371,1.51123518,3322.0,3321.6,0.00227369]
[1642229825069,1.51123518,3322.0,3321.6,2.576884]
[1642229825368,0.045463,3321.7,3321.6,2.57461031]
[1642229825768,0.045463,3321.7,3321.6,2.576884]
[1642229825968,0.045463,3321.7,3321.6,0.00227369]
[1642229826169,1.31163665,3321.7,3321.6,0.00227369]
[1642229826368,1.31163665,3321.7,3321.5,2.8644255]
[1642229826369,0.045463,3321.7,3321.5,2.8644255]
[1642229826569,0.045463,3321.7,3321.5,0.00284212]
[1642229827816,0.032733,3321.9,3321.5,0.00284212]
[1642229828018,1.40335319,3321.8,3321.5,0.00284212]
[1642229828517,1.40335319,3321.8,3321.5,2.71798392]
[1642229828719,1.40335319,3321.8,3321.5,0.00284212]
[1642229828919,1.43701319,3321.8,3321.5,0.00284212]
[1642229829322,1.40335319,3321.8,3321.5,0.00284212]
[1642229829922,1.43609519,3321.8,3321.5,0.00284212]
[1642229831372,1.43609519,3321.8,3321.5,2.51919312]
[1642229831573,1.43609519,3321.8,3321.5,0.00284212]
[1642229831973,1.43609519,3321.8,3321.5,2.5106259]
[1642229832176,1.40335319,3321.8,3321.5,2.5106259]
[1642229832374,1.40335319,3321.8,3321.5,0.00284212]
[1642229832773,1.40335319,3321.8,3321.5,2.5340797]
[1642229833676,1.40335319,3321.8,3321.5,0.00284212]
[1642229833876,1.40335319,3321.8,3321.6,2.57461031]
[1642229834075,1.40335319,3321.8,3321.7,2.52734446]
[1642229834275,1.40335319,3321.8,3321.7,0.00170527]
[1642229835124,1.40335319,3321.8,3321.7,2.57631558]
[1642229835925,1.40335319,3321.8,3321.7,0.00170527]
[1642229836325,1.40335319,3321.8,3321.5,2.68432126]
[1642229836525,1.40335319,3321.8,3321.7,2.57461031]
[1642229836924,1.40335319,3321.8,3321.7,2.57631558]
[1642229837524,1.40335319,3321.8,3321.7,0.00170527]
[1642229839374,1.40335319,3321.8,3321.7,2.50986517]
[1642229839570,1.40335319,3321.8,3321.7,0.00170527]
[1642229839973,1.40335319,3321.8,3321.7,2.57631558]
[1642229841371,1.40335319,3321.8,3321.7,0.00170527]
[1642229841973,1.40335319,3321.8,3321.7,2.57631558]
[1642229842717,1.40335319,3321.8,3321.7,0.00170527]
[1642229844321,1.40335319,3321.8,3321.7,2.57631558]
[1642229845877,1.44553719,3321.8,3321.7,0.00170527]
[1642229846279,4.60712057,3321.8,3321.7,0.00170527]
[1642229846476,4.60712057,3321.8,3321.7,2.57631558]
[1642229846477,2.04553719,3321.8,3321.7,2.57631558]
[1642229846676,3.04553719,3321.8,3321.7,2.57631558]
[1642229846878,2.04553719,3321.8,3321.7,2.57631558]
[1642229847076,3.04553719,3321.8,3321.2,10.0]
[1642229847276,0.045463,3321.3,3321.2,10.0]
[1642229847475,2.57917219,3321.3,3321.2,10.0]
[1642229847682,3.57917219,3321.3,3321.2,10.0]
[1642229848079,2.27561054,3321.3,3321.2,10.0]
[1642229848578,1.27561054,3321.3,3321.2,10.0]
[1642229850826,1.23014754,3321.3,3321.2,10.0]
[1642229851527,1.27561054,3321.3,3321.2,10.0]
[1642229853029,1.23014754,3321.3,3321.2,10.0]
[1642229853472,0.032733,3321.4,3321.2,10.0]
[1642229853870,0.032733,3321.4,3321.3,0.00227369]
[1642229854071,0.032733,3321.5,3321.3,0.00227369]
[1642229854272,1.43223176,3321.6,3321.3,0.00227369]
[1642229854676,1.19618629,3321.5,3321.3,0.00227369]
[1642229854878,2.85485424,3321.4,3321.3,0.00227369]
[1642229855075,5.28239867,3321.5,3321.3,0.00227369]
[1642229855378,1.79618629,3321.5,3321.3,0.00227369]
[1642229855674,1.0,3321.4,3321.3,0.00227369]
[1642229855876,2.79618629,3321.5,3321.3,0.00227369]
[1642229857144,2.19618629,3321.5,3321.3,0.00227369]
[1642229857732,2.7989468,3321.4,3321.3,0.00227369]
[1642229858133,1.0,3321.4,3321.3,0.00227369]
[1642229858532,2.19618629,3321.5,3321.3,0.00227369]
[1642229860136,0.75296,3321.4,3321.3,0.00227369]
[1642229862170,2.19618629,3321.5,3321.3,0.00227369]
[1642229867424,2.19618629,3321.5,3321.3,2.57731895]
[1642229867823,2.19618629,3321.5,3321.4,0.00170527]
[1642229868024,2.15249229,3321.5,3321.4,0.00170527]
[1642229870885,2.90542229,3321.5,3321.4,0.00170527]
[1642229871778,2.15249229,3321.5,3321.4,0.00170527]
[1642229876073,2.90543229,3321.5,3321.4,0.00170527]
[1642229877070,2.15249229,3321.5,3321.4,0.00170527]
[1642229877474,2.79776129,3321.5,3321.4,0.00170527]
[1642229877672,2.75249229,3321.5,3321.4,0.00170527]
[1642229878473,2.79539129,3321.5,3321.4,0.00170527]
[1642229878677,3.54834129,3321.5,3321.4,0.00170527]
[1642229879920,2.15249229,3321.5,3321.4,0.00170527]
[1642229880122,1.0,3321.5,3321.4,0.00170527]
[1642229880324,0.032733,3321.7,3321.4,0.00170527]
[1642229880521,0.036652,3321.7,3321.4,0.00170527]
[1642229881125,0.045463,3321.7,3321.4,0.00170527]
[1642229881721,0.045463,3321.7,3321.4,2.57652318]
[1642229881722,0.080638,3321.7,3321.4,2.57652318]
[1642229881923,0.032733,3321.8,3321.4,2.57652318]
[1642229882120,0.045463,3321.8,3321.5,0.00113685]
[1642229882322,0.045463,3321.8,3321.7,1.39688488]
[1642229882622,0.034773,3321.8,3321.7,1.39688488]
[1642229883223,0.034773,3321.8,3321.5,0.00113685]
[1642229883474,0.045079,3321.8,3321.5,0.00113685]
[1642229883675,0.045079,3321.8,3321.4,0.00170527]
[1642229883881,0.045463,3321.7,3321.4,0.00170527]
[1642229884074,0.045463,3321.6,3321.4,2.57644081]
[1642229884277,0.03805,3321.6,3321.4,2.57644081]
[1642229884476,0.03805,3321.6,3321.5,0.00113685]
[1642229884774,0.032733,3321.7,3321.5,0.00113685]
[1642229884975,0.038367,3321.7,3321.5,0.00113685]
[1642229886380,0.045463,3321.6,3321.5,0.00113685]
[1642229886575,1.49108242,3321.9,3321.5,0.00113685]
[1642229886875,0.045463,3321.8,3321.5,0.00113685]
[1642229887123,0.045463,3321.7,3321.5,0.00113685]
[1642229887428,0.041397,3321.7,3321.5,0.00113685]
[1642229887823,0.045463,3321.7,3321.5,0.00113685]
[1642229888023,1.041453,3321.7,3321.5,0.00113685]
[1642229888423,0.041453,3321.7,3321.4,0.00170527]
[1642229888624,0.045463,3321.6,3321.4,0.00170527]
[1642229888825,0.03869,3321.6,3321.4,0.00170527]
[1642229889029,0.03869,3321.6,3321.4,1.18349625]
[1642229889428,0.032733,3321.7,3321.5,0.00113685]
[1642229889626,0.03915,3321.7,3321.5,0.00113685]
[1642229889829,0.03915,3321.7,3321.4,0.00170527]
[1642229890027,0.045463,3321.6,3321.4,0.00170527]
[1642229890230,0.037867,3321.6,3321.4,0.00170527]
[1642229890731,1.82381542,3321.9,3321.4,0.00170527]
[1642229890975,0.045463,3321.8,3321.4,0.00170527]
[1642229891172,2.82381542,3321.9,3321.4,0.00170527]
[1642229891374,1.82381542,3321.9,3321.4,0.00170527]
[1642229891675,1.53654542,3321.9,3321.4,0.00170527]
[1642229892071,1.49108242,3321.9,3321.4,0.00170527]
[1642229892471,0.045463,3321.8,3321.4,0.00170527]
[1642229893073,0.041182,3321.8,3321.4,0.00170527]
[1642229893471,0.045463,3321.7,3321.4,0.00170527]
[1642229894070,1.49108242,3321.9,3321.4,0.00170527]
[1642229894275,0.045463,3321.6,3321.4,0.00170527]
[1642229894472,0.032733,3321.7,3321.4,0.00170527]
[1642229894726,1.49108242,3321.9,3321.4,0.00170527]
[1642229895124,0.045463,3321.7,3321.4,0.00170527]
[1642229895324,0.036387,3321.7,3321.4,0.00170527]
[1642229895524,0.045463,3321.6,3321.4,0.00170527]
[1642229895725,1.49108242,3321.9,3321.4,0.00170527]
[1642229895726,0.032733,3321.7,3321.4,0.00170527]
[1642229895924,0.034533,3321.7,3321.4,0.00170527]
[1642229896325,1.49108242,3321.9,3321.4,0.00170527]
[1642229896724,0.045463,3321.7,3321.4,0.00170527]
[1642229897426,1.52381542,3321.9,3321.4,0.00170527]
[1642229897826,1.49108242,3321.9,3321.4,0.00170527]
[1642229898026,1.53654542,3321.9,3321.4,0.00170527]
[1642229898474,0.045463,3321.5,3321.4,0.00170527]
[1642229898873,0.032733,3321.6,3321.4,0.00170527]
[1642229900075,0.032733,3321.7,3321.4,0.00170527]
[1642229900375,0.045463,3321.5,3321.4,0.00170527]
[1642229901372,0.032733,3321.6,3321.4,0.00170527]
[1642229901774,1.79108242,3321.9,3321.4,0.00170527]
[1642229901775,0.032733,3321.8,3321.4,0.00170527]
[1642229903923,0.045463,3321.5,3321.4,0.00170527]
[1642229904124,0.037136,3321.5,3321.4,0.00170527]
[1642229904724,0.045463,3321.5,3321.4,0.00170527]
[1642229904925,0.032733,3321.6,3321.4,0.00170527]
[1642229905526,0.75291,3321.6,3321.4,0.00170527]
[1642229905725,0.045463,3321.5,3321.4,0.00170527]
[1642229906376,0.032733,3321.6,3321.4,0.00170527]
[1642229906974,0.032733,3321.7,3321.4,0.00170527]
[1642229907774,2.09108242,3321.9,3321.4,0.00170527]
[1642229907775,0.042492,3321.6,3321.4,0.00170527]
[1642229908176,0.032733,3321.8,3321.4,0.00170527]
[1642229908978,2.54392242,3321.9,3321.4,0.00170527]
[1642229909176,0.045463,3321.5,3321.4,0.00170527]
[1642229910424,2.24392242,3321.9,3321.4,0.00170527]
[1642229910425,1.49108242,3321.9,3321.4,0.00170527]
[1642229910627,0.032733,3321.8,3321.4,0.00170527]
[1642229910825,1.49108242,3321.9,3321.4,0.00170527]
[1642229911026,0.045463,3321.6,3321.4,0.00170527]
[1642229911227,0.032733,3321.7,3321.4,0.00170527]
[1642229911627,0.0433,3321.6,3321.4,0.00170527]
[1642229912228,0.032733,3321.7,3321.4,0.00170527]
[1642229912432,2.24394242,3321.9,3321.4,0.00170527]
[1642229912630,0.045463,3321.5,3321.4,0.00170527]
[1642229913473,0.032733,3321.6,3321.4,0.00170527]
[1642229913674,0.045463,3321.5,3321.4,0.00170527]
[1642229914074,0.032733,3321.6,3321.4,0.00170527]
[1642229914980,0.785643,3321.6,3321.4,0.00170527]
[1642229915977,0.75291,3321.6,3321.4,0.00170527]
[1642229916579,0.792099,3321.6,3321.4,0.00170527]